[Event "Masters Tournament (MTO)"]
[Site "Biel, Switzerland"]
[Date "2026.07.15"]
[Round "3.24"]
[White "Matsumura, Cocoro"]
[Black "Gerrits, Augustin"]
[Result "1-0"]
[TimeControl "100+30+30sec/move"]
[WhiteTitle "-"]
[BlackTitle "-"]
[WhiteFideId "36087114"]
[BlackFideId "285358"]
[WhiteElo "2225"]
[BlackElo "2072"]

1. e4 {[%clk 01:40:58]} e5 {[%clk 01:40:37]} {[%emt 00:00:23]} 2. Nf3 {[%clk
01:41:23]} {[%emt 00:00:06]} Nc6 {[%clk 01:40:57]} {[%emt 00:00:10]} 3. Bb5
{[%clk 01:41:46]} {[%emt 00:00:06]} a6 {[%clk 01:41:08]} {[%emt 00:00:17]} 4.
Ba4 {[%clk 01:42:13]} {[%emt 00:00:05]} Nf6 {[%clk 01:41:07]} {[%emt 00:00:31]}
5. O-O {[%clk 01:42:35]} {[%emt 00:00:08]} Be7 {[%clk 01:41:10]} {[%emt
00:00:26]} 6. Re1 {[%clk 01:42:58]} {[%emt 00:00:08]} b5 {[%clk 01:41:12]}
{[%emt 00:00:28]} 7. Bb3 {[%clk 01:43:23]} {[%emt 00:00:05]} d6 {[%clk
01:41:18]} {[%emt 00:00:23]} 8. c3 {[%clk 01:43:46]} {[%emt 00:00:08]} O-O
{[%clk 01:41:29]} {[%emt 00:00:19]} 9. h3 {[%clk 01:44:11]} {[%emt 00:00:04]}
Nb8 {[%clk 01:41:33]} {[%emt 00:00:27]} 10. d4 {[%clk 01:44:08]} {[%emt
00:00:33]} Nbd7 {[%clk 01:41:38]} {[%emt 00:00:24]} 11. c4 {[%clk 01:43:42]}
{[%emt 00:00:57]} c6 {[%clk 01:39:34]} {[%emt 00:02:35]} 12. Nc3 {[%clk
01:43:49]} {[%emt 00:00:22]} b4 {[%clk 01:39:07]} {[%emt 00:00:57]} 13. Na4
{[%clk 01:43:53]} {[%emt 00:00:26]} c5 {[%clk 01:39:01]} {[%emt 00:00:36]} 14.
d5 {[%clk 01:43:55]} {[%emt 00:00:28]} Re8 {[%clk 01:38:53]} {[%emt 00:00:38]}
15. g3 {[%clk 01:42:38]} {[%emt 00:01:47]} Nf8 {[%clk 01:34:20]} {[%emt
00:05:02]} 16. Kg2 {[%clk 01:42:49]} {[%emt 00:00:19]} Ng6 {[%clk 01:28:20]}
{[%emt 00:06:31]} 17. Bc2 {[%clk 01:40:43]} {[%emt 00:02:37]} h6 {[%clk
01:25:48]} {[%emt 00:03:01]} 18. b3 {[%clk 01:37:47]} {[%emt 00:03:27]} Nh7
{[%clk 01:20:52]} {[%emt 00:05:25]} 19. Be3 {[%clk 01:36:22]} {[%emt 00:01:55]}
Bd7 {[%clk 01:14:25]} {[%emt 00:06:57]} 20. Rh1 {[%clk 01:30:56]} {[%emt
00:05:55]} Rb8 {[%clk 01:09:21]} {[%emt 00:05:36]} 21. Nb2 {[%clk 01:17:48]}
{[%emt 00:13:37]} Qc8 {[%clk 01:02:24]} {[%emt 00:07:28]} 22. a3 {[%clk
01:14:01]} {[%emt 00:04:16]} a5 {[%clk 00:57:32]} {[%emt 00:05:22]} 23. axb4
{[%clk 01:11:00]} {[%emt 00:03:31]} axb4 {[%clk 00:57:54]} {[%emt 00:00:08]} 24.
Ra7 {[%clk 01:02:43]} {[%emt 00:08:47]} Ra8 {[%clk 00:48:38]} {[%emt 00:09:46]}
25. Qa1 {[%clk 00:56:47]} {[%emt 00:06:26]} Rxa7 {[%clk 00:48:22]} {[%emt
00:00:46]} 26. Qxa7 {[%clk 00:57:12]} {[%emt 00:00:04]} f5 {[%clk 00:47:36]}
{[%emt 00:01:16]} 27. Na4 {[%clk 00:53:07]} {[%emt 00:04:36]} Bxa4 {[%clk
00:39:09]} {[%emt 00:08:57]} 28. bxa4 {[%clk 00:41:40]} {[%emt 00:11:58]} f4
{[%clk 00:39:22]} {[%emt 00:00:16]} 29. Bd2 {[%clk 00:40:40]} {[%emt 00:01:31]}
Ng5 {[%clk 00:36:47]} {[%emt 00:03:04]} 30. g4 {[%clk 00:33:19]} {[%emt
00:07:51]} Nxf3 {[%clk 00:30:20]} {[%emt 00:06:57]} 31. Kxf3 {[%clk 00:32:00]}
{[%emt 00:01:49]} Nh4+ {[%clk 00:29:50]} {[%emt 00:01:00]} 32. Ke2 {[%clk
00:32:25]} {[%emt 00:00:04]} f3+ {[%clk 00:29:56]} {[%emt 00:00:25]} 33. Kd3
{[%clk 00:32:33]} {[%emt 00:00:22]} Bg5 {[%clk 00:30:00]} {[%emt 00:00:26]} 34.
Bxg5 {[%clk 00:28:39]} {[%emt 00:04:24]} hxg5 {[%clk 00:30:16]} {[%emt
00:00:13]} 35. a5 {[%clk 00:27:53]} {[%emt 00:01:17]} Ng6 {[%clk 00:19:14]}
{[%emt 00:11:32]} 36. Ba4 {[%clk 00:24:10]} {[%emt 00:04:13]} Nf4+ {[%clk
00:18:26]} {[%emt 00:01:18]} 37. Kd2 {[%clk 00:23:52]} {[%emt 00:00:47]} Qb8
{[%clk 00:11:40]} {[%emt 00:07:17]} 38. Qxb8 {[%clk 00:22:55]} {[%emt
00:01:28]} Rxb8 {[%clk 00:12:05]} {[%emt 00:00:04]} 39. Bc6 {[%clk 00:23:14]}
{[%emt 00:00:11]} 1-0

[Event "Masters Tournament (MTO)"]
[Site "Biel, Switzerland"]
[Date "2026.07.15"]
[Round "3.25"]
[White "Aryan, Mehta"]
[Black "Harish, Neeraj"]
[Result "1/2-1/2"]
[TimeControl "100+30+30sec/move"]
[WhiteTitle "-"]
[BlackTitle "-"]
[WhiteFideId "33329664"]
[BlackFideId "30958130"]
[WhiteElo "1979"]
[BlackElo "2201"]

1. d4 {[%clk 01:40:51]} {[%emt 00:00:08]} d5 {[%clk 01:40:50]} {[%emt
00:00:10]} 2. c4 {[%clk 01:41:14]} {[%emt 00:00:06]} e6 {[%clk 01:41:14]}
{[%emt 00:00:08]} 3. Nc3 {[%clk 01:41:37]} {[%emt 00:00:07]} c6 {[%clk
01:41:36]} {[%emt 00:00:09]} 4. cxd5 {[%clk 01:41:19]} {[%emt 00:00:47]} exd5
{[%clk 01:41:56]} {[%emt 00:00:10]} 5. Nf3 {[%clk 01:41:43]} {[%emt 00:00:05]}
Bd6 {[%clk 01:42:01]} {[%emt 00:00:26]} 6. Bg5 {[%clk 01:41:55]} {[%emt
00:00:18]} Ne7 {[%clk 01:42:13]} {[%emt 00:00:18]} 7. e3 {[%clk 01:42:10]}
{[%emt 00:00:14]} h6 {[%clk 01:42:12]} {[%emt 00:00:32]} 8. Bh4 {[%clk
01:42:32]} {[%emt 00:00:07]} Bf5 {[%clk 01:42:04]} {[%emt 00:00:38]} 9. Bd3
{[%clk 01:42:46]} {[%emt 00:00:16]} Bxd3 {[%clk 01:41:55]} {[%emt 00:00:39]} 10.
Qxd3 {[%clk 01:43:10]} {[%emt 00:00:06]} O-O {[%clk 01:42:06]} {[%emt
00:00:20]} 11. O-O {[%clk 01:42:53]} {[%emt 00:00:46]} Nd7 {[%clk 01:38:11]}
{[%emt 00:04:26]} 12. e4 {[%clk 01:34:41]} {[%emt 00:08:42]} dxe4 {[%clk
01:30:28]} {[%emt 00:08:13]} 13. Nxe4 {[%clk 01:34:41]} {[%emt 00:00:30]} Nb6
{[%clk 01:27:23]} {[%emt 00:03:35]} 14. Rfe1 {[%clk 01:27:20]} {[%emt
00:07:50]} Nbd5 {[%clk 01:23:39]} {[%emt 00:04:14]} 15. Ne5 {[%clk 01:23:36]}
{[%emt 00:04:14]} f6 {[%clk 01:04:47]} {[%emt 00:19:22]} 16. Qh3 {[%clk
00:53:33]} {[%emt 00:30:33]} Nf4 {[%clk 00:40:30]} {[%emt 00:24:47]} 17. Qb3+
{[%clk 00:52:09]} {[%emt 00:01:55]} Nfd5 {[%clk 00:37:53]} {[%emt 00:03:06]} 18.
Qh3 {[%clk 00:45:41]} {[%emt 00:06:58]} Nf4 {[%clk 00:35:09]} {[%emt 00:03:14]}
19. Qb3+ {[%clk 00:40:28]} {[%emt 00:05:44]} Nfd5 {[%clk 00:30:59]} {[%emt
00:04:40]} 1/2-1/2

[Event "Masters Tournament (MTO)"]
[Site "Biel, Switzerland"]
[Date "2026.07.15"]
[Round "3.26"]
[White "Liu, Bei"]
[Black "Stefan, Iulia-Cristiana"]
[Result "1-0"]
[TimeControl "100+30+30sec/move"]
[WhiteTitle "-"]
[BlackTitle "-"]
[WhiteFideId "8603596"]
[BlackFideId "1273876"]
[WhiteElo "2175"]
[BlackElo "2053"]

1. d4 {[%clk 01:40:56]} {[%emt 00:00:03]} d5 {[%clk 01:40:55]} {[%emt
00:00:05]} 2. c4 {[%clk 01:41:19]} {[%emt 00:00:07]} e6 {[%clk 01:41:20]}
{[%emt 00:00:06]} 3. Nc3 {[%clk 01:41:43]} {[%emt 00:00:04]} Nf6 {[%clk
01:41:45]} {[%emt 00:00:05]} 4. cxd5 {[%clk 01:42:08]} {[%emt 00:00:05]} exd5
{[%clk 01:42:09]} {[%emt 00:00:06]} 5. Bg5 {[%clk 01:42:33]} {[%emt 00:00:04]}
Be7 {[%clk 01:42:24]} {[%emt 00:00:15]} 6. e3 {[%clk 01:42:56]} {[%emt
00:00:07]} h6 {[%clk 01:42:02]} {[%emt 00:00:53]} 7. Bh4 {[%clk 01:43:20]}
{[%emt 00:00:06]} Bg4 {[%clk 01:42:08]} {[%emt 00:00:24]} 8. Nf3 {[%clk
01:42:34]} {[%emt 00:01:16]} c6 {[%clk 01:35:44]} {[%emt 00:06:55]} 9. Bd3
{[%clk 01:42:33]} {[%emt 00:00:30]} Nbd7 {[%clk 01:32:08]} {[%emt 00:04:06]} 10.
O-O {[%clk 01:42:34]} {[%emt 00:00:29]} O-O {[%clk 01:32:13]} {[%emt 00:00:25]}
11. Qc2 {[%clk 01:41:30]} {[%emt 00:01:34]} Bxf3 {[%clk 01:10:21]} {[%emt
00:22:22]} 12. gxf3 {[%clk 01:41:53]} {[%emt 00:00:06]} Rc8 {[%clk 01:03:34]}
{[%emt 00:07:18]} 13. Rad1 {[%clk 01:36:46]} {[%emt 00:05:38]} Re8 {[%clk
00:55:42]} {[%emt 00:08:21]} 14. Bf5 {[%clk 01:30:33]} {[%emt 00:06:42]} b5
{[%clk 00:51:57]} {[%emt 00:04:16]} 15. Kh1 {[%clk 01:25:48]} {[%emt 00:05:15]}
Qc7 {[%clk 00:47:09]} {[%emt 00:05:18]} 16. Rg1 {[%clk 01:20:51]} {[%emt
00:05:27]} Kh8 {[%clk 00:46:49]} {[%emt 00:00:50]} 17. Ne2 {[%clk 01:18:35]}
{[%emt 00:02:46]} Ne4 {[%clk 00:39:04]} {[%emt 00:08:15]} 18. Bg3 {[%clk
01:10:58]} {[%emt 00:08:06]} Nxg3+ {[%clk 00:34:25]} {[%emt 00:05:09]} 19. Nxg3
{[%clk 01:09:38]} {[%emt 00:01:50]} Qd6 {[%clk 00:29:12]} {[%emt 00:05:44]} 20.
e4 {[%clk 01:06:48]} {[%emt 00:03:21]} Rcd8 {[%clk 00:20:29]} {[%emt 00:09:13]}
21. e5 {[%clk 01:05:20]} {[%emt 00:01:56]} Qc7 {[%clk 00:20:50]} {[%emt
00:00:10]} 22. f4 {[%clk 00:59:39]} {[%emt 00:06:10]} c5 {[%clk 00:15:49]}
{[%emt 00:05:32]} 23. Qe2 {[%clk 00:57:09]} {[%emt 00:03:00]} g6 {[%clk
00:08:41]} {[%emt 00:07:38]} 24. Bd3 {[%clk 00:52:54]} {[%emt 00:04:45]} a6
{[%clk 00:06:24]} {[%emt 00:02:47]} 25. f5 {[%clk 00:45:42]} {[%emt 00:07:42]}
Nf8 {[%clk 00:05:38]} {[%emt 00:01:16]} 26. f4 {[%clk 00:37:45]} {[%emt
00:08:27]} cxd4 {[%clk 00:04:46]} {[%emt 00:01:22]} 27. fxg6 {[%clk 00:34:28]}
{[%emt 00:03:47]} fxg6 {[%clk 00:05:08]} {[%emt 00:00:08]} 28. Bxg6 {[%clk
00:29:49]} {[%emt 00:05:09]} Nxg6 {[%clk 00:05:20]} {[%emt 00:00:18]} 29. Qh5
{[%clk 00:30:17]} {[%emt 00:00:02]} Bf8 {[%clk 00:02:46]} {[%emt 00:03:04]} 30.
Qxg6 {[%clk 00:30:28]} {[%emt 00:00:19]} Qh7 {[%clk 00:02:18]} {[%emt
00:00:58]} 31. Qxa6 {[%clk 00:22:50]} {[%emt 00:08:08]} h5 {[%clk 00:01:59]}
{[%emt 00:00:49]} 32. Qf6+ {[%clk 00:23:11]} {[%emt 00:00:09]} Bg7 {[%clk
00:02:21]} {[%emt 00:00:09]} 33. Qf5 {[%clk 00:23:37]} {[%emt 00:00:03]} h4
{[%clk 00:01:54]} {[%emt 00:00:56]} 34. Qxh7+ {[%clk 00:24:00]} {[%emt
00:00:08]} Kxh7 {[%clk 00:02:20]} {[%emt 00:00:05]} 35. Nf5 {[%emt 00:01:30]}
Bh6 {[%clk 00:02:32]} 36. Rg4 {[%clk 00:22:08]} {[%emt 00:01:39]} Rf8 {[%clk
00:02:07]} {[%emt 00:00:55]} 37. Nxd4 {[%emt 00:03:42]} Ra8 {[%clk 00:01:34]}
38. Ne6 {[%clk 00:19:45]} {[%emt 00:00:44]} Rfe8 {[%clk 00:01:20]} {[%emt
00:00:44]} 39. Nc7 {[%clk 00:20:04]} {[%emt 00:00:10]} Rg8 {[%clk 00:01:41]}
{[%emt 00:00:10]} 40. Rxh4 {[%clk 00:19:46]} {[%emt 00:00:48]} Rxa2 {[%clk
00:01:34]} {[%emt 00:00:37]} 41. Nxd5 {[%clk 00:19:58]} {[%emt 00:00:18]} Rg6
{[%clk 00:01:25]} {[%emt 00:00:38]} 42. Ne7 {[%clk 00:18:53]} {[%emt 00:01:35]}
Re6 {[%clk 00:29:56]} {[%emt 00:02:00]} 43. Nf5 {[%clk 00:49:00]} {[%emt
00:00:23]} Rxb2 {[%clk 00:29:24]} {[%emt 00:01:02]} 44. Nxh6 {[%clk 00:48:55]}
{[%emt 00:00:35]} b4 {[%clk 00:29:19]} {[%emt 00:00:35]} 45. Rd7+ {[%clk
00:48:04]} {[%emt 00:01:21]} 1-0

[Event "Masters Tournament (MTO)"]
[Site "Biel, Switzerland"]
[Date "2026.07.15"]
[Round "3.27"]
[White "Heitmann, Erik"]
[Black "Kudryavtsev, Eugene"]
[Result "0-1"]
[TimeControl "100+30+30sec/move"]
[WhiteTitle "-"]
[BlackTitle "-"]
[WhiteFideId "34608940"]
[BlackFideId "1315374"]
[WhiteElo "1949"]
[BlackElo "2146"]

1. d4 {[%clk 01:40:59]} {[%emt 00:00:01]} d5 {[%clk 01:40:53]} {[%emt
00:00:07]} 2. c4 {[%clk 01:41:24]} {[%emt 00:00:06]} c6 {[%clk 01:41:17]}
{[%emt 00:00:04]} 3. e3 {[%clk 01:41:49]} {[%emt 00:00:05]} Bf5 {[%clk
01:41:01]} {[%emt 00:00:46]} 4. Nc3 {[%clk 01:42:05]} {[%emt 00:00:14]} e6
{[%clk 01:41:22]} {[%emt 00:00:09]} 5. Nf3 {[%clk 01:42:11]} {[%emt 00:00:23]}
Nd7 {[%clk 01:39:41]} {[%emt 00:02:13]} 6. Be2 {[%clk 01:40:46]} {[%emt
00:01:53]} h6 {[%clk 01:36:04]} {[%emt 00:04:10]} 7. Qb3 {[%clk 01:40:19]}
{[%emt 00:00:54]} Qb6 {[%clk 01:35:47]} {[%emt 00:00:48]} 8. c5 {[%clk
01:37:52]} {[%emt 00:02:58]} Qc7 {[%clk 01:28:33]} {[%emt 00:07:44]} 9. Bd2
{[%clk 01:36:00]} {[%emt 00:02:22]} Ngf6 {[%clk 01:19:50]} {[%emt 00:09:12]} 10.
h3 {[%clk 01:29:35]} {[%emt 00:06:56]} Be7 {[%clk 00:54:30]} {[%emt 00:25:50]}
11. Na4 {[%clk 01:14:05]} {[%emt 00:16:00]} Ne4 {[%clk 00:44:54]} {[%emt
00:10:06]} 12. Bb4 {[%clk 01:02:42]} {[%emt 00:11:53]} Bh7 {[%clk 00:30:47]}
{[%emt 00:14:37]} 13. Nc3 {[%clk 00:57:53]} {[%emt 00:05:19]} f5 {[%clk
00:27:39]} {[%emt 00:03:37]} 14. Bd3 {[%clk 00:51:20]} {[%emt 00:07:03]} O-O
{[%clk 00:25:28]} {[%emt 00:02:41]} 15. Ne2 {[%clk 00:50:18]} {[%emt 00:01:32]}
g5 {[%clk 00:21:58]} {[%emt 00:04:01]} 16. Nd2 {[%clk 00:38:55]} {[%emt
00:11:53]} Bg6 {[%clk 00:16:42]} {[%emt 00:05:46]} 17. Bc3 {[%clk 00:33:40]}
{[%emt 00:05:45]} Rf7 {[%clk 00:13:30]} {[%emt 00:03:41]} 18. Nf1 {[%clk
00:31:20]} {[%emt 00:02:51]} e5 {[%clk 00:10:30]} {[%emt 00:03:30]} 19. f3
{[%clk 00:29:15]} {[%emt 00:02:34]} Nxc3 {[%clk 00:10:46]} {[%emt 00:00:15]} 20.
Qxc3 {[%clk 00:28:14]} {[%emt 00:01:32]} exd4 {[%clk 00:07:46]} {[%emt
00:03:30]} 21. exd4 {[%clk 00:28:11]} {[%emt 00:00:32]} b6 {[%clk 00:07:39]}
{[%emt 00:00:37]} 22. cxb6 {[%clk 00:25:46]} {[%emt 00:02:55]} Qxb6 {[%clk
00:07:59]} {[%emt 00:00:10]} 23. Ne3 {[%clk 00:24:35]} {[%emt 00:01:40]} Bb4
{[%clk 00:08:19]} {[%emt 00:00:11]} 0-1

[Event "Masters Tournament (MTO)"]
[Site "Biel, Switzerland"]
[Date "2026.07.15"]
[Round "3.28"]
[White "Vihaan, Dumir"]
[Black "Al Ibrahim, Abdulrahman"]
[Result "0-1"]
[TimeControl "100+30+30sec/move"]
[WhiteTitle "-"]
[BlackTitle "-"]
[WhiteFideId "25901010"]
[BlackFideId "10300503"]
[WhiteElo "2132"]
[BlackElo "2016"]

1. e4 {[%clk 01:40:30]} {[%emt 00:00:29]} c6 {[%clk 01:37:09]} {[%emt
00:03:52]} 2. d4 {[%clk 01:40:55]} {[%emt 00:00:05]} d5 {[%clk 01:37:35]}
{[%emt 00:00:04]} 3. e5 {[%clk 01:41:22]} {[%emt 00:00:03]} c5 {[%clk
01:37:59]} {[%emt 00:00:07]} 4. dxc5 {[%clk 01:41:48]} {[%emt 00:00:03]} e6
{[%clk 01:38:21]} {[%emt 00:00:09]} 5. Be3 {[%clk 01:42:09]} {[%emt 00:00:08]}
Nd7 {[%clk 01:38:35]} {[%emt 00:00:16]} 6. Bb5 {[%clk 01:40:35]} {[%emt
00:02:01]} Ne7 {[%clk 01:38:48]} {[%emt 00:00:19]} 7. c3 {[%clk 01:38:56]}
{[%emt 00:02:09]} a6 {[%clk 01:37:14]} {[%emt 00:02:05]} 8. Ba4 {[%clk
01:39:06]} {[%emt 00:00:19]} Nc6 {[%clk 01:30:20]} {[%emt 00:07:25]} 9. b4
{[%clk 01:36:52]} {[%emt 00:02:45]} Ndxe5 {[%clk 01:29:02]} {[%emt 00:01:47]}
10. f4 {[%clk 00:56:29]} {[%emt 00:40:51]} Nc4 {[%clk 01:26:46]} {[%emt
00:02:48]} 11. Bd4 {[%clk 00:56:19]} {[%emt 00:00:39]} Bd7 {[%clk 01:04:13]}
{[%emt 00:23:04]} 12. Bxc6 {[%clk 00:56:26]} {[%emt 00:00:23]} Bxc6 {[%clk
01:04:38]} {[%emt 00:00:05]} 13. Nf3 {[%clk 00:46:22]} {[%emt 00:10:34]} Be7
{[%clk 01:02:44]} {[%emt 00:02:25]} 14. O-O {[%clk 00:43:16]} {[%emt 00:03:35]}
O-O {[%clk 01:02:44]} {[%emt 00:00:29]} 15. a4 {[%clk 00:36:43]} {[%emt
00:07:02]} b6 {[%clk 00:43:35]} {[%emt 00:19:41]} 16. cxb6 {[%clk 00:36:50]}
{[%emt 00:00:23]} Nxb6 {[%clk 00:43:56]} {[%emt 00:00:08]} 17. Ne5 {[%clk
00:30:43]} {[%emt 00:06:38]} Be8 {[%clk 00:35:50]} {[%emt 00:08:36]} 18. Qg4
{[%clk 00:21:26]} {[%emt 00:09:46]} g6 {[%clk 00:35:41]} {[%emt 00:00:40]} 19.
a5 {[%clk 00:14:25]} {[%emt 00:07:32]} Nc4 {[%clk 00:35:19]} {[%emt 00:00:51]}
20. Nxc4 {[%clk 00:10:24]} {[%emt 00:04:30]} dxc4 {[%clk 00:35:45]} {[%emt
00:00:05]} 21. Nd2 {[%clk 00:08:42]} {[%emt 00:02:11]} Bf6 {[%clk 00:29:52]}
{[%emt 00:06:24]} 22. Bxf6 {[%clk 00:08:35]} {[%emt 00:00:37]} Qxf6 {[%clk
00:30:18]} {[%emt 00:00:04]} 23. Ne4 {[%clk 00:08:26]} {[%emt 00:00:38]} Qg7
{[%clk 00:30:38]} {[%emt 00:00:10]} 24. Qh4 {[%clk 00:07:09]} {[%emt 00:01:42]}
f6 {[%clk 00:25:33]} {[%emt 00:05:41]} 25. Nc5 {[%clk 00:06:25]} {[%emt
00:01:13]} Bd7 {[%clk 00:23:06]} {[%emt 00:02:58]} 26. Rad1 {[%clk 00:05:57]}
{[%emt 00:00:57]} Bc8 {[%clk 00:21:23]} {[%emt 00:02:14]} 27. Rfe1 {[%clk
00:05:35]} {[%emt 00:00:51]} Qe7 {[%clk 00:18:30]} {[%emt 00:03:24]} 28. f5
{[%clk 00:05:47]} {[%emt 00:00:17]} gxf5 {[%clk 00:15:46]} {[%emt 00:03:14]} 29.
Qxc4 {[%clk 00:06:16]} {[%emt 00:00:02]} Re8 {[%clk 00:14:20]} {[%emt
00:01:56]} 30. Rd3 {[%clk 00:06:42]} {[%emt 00:00:03]} Kh8 {[%clk 00:14:25]}
{[%emt 00:00:27]} 31. Ree3 {[%clk 00:03:24]} {[%emt 00:03:45]} Ra7 {[%clk
00:12:10]} {[%emt 00:02:46]} 32. Qd4 {[%clk 00:01:57]} {[%emt 00:01:57]} e5
{[%clk 00:11:41]} {[%emt 00:01:00]} 33. Qd6 {[%clk 00:01:45]} {[%emt 00:00:38]}
Qf7 {[%clk 00:09:37]} {[%emt 00:02:38]} 34. Qb6 {[%clk 00:01:46]} {[%emt
00:00:27]} f4 {[%clk 00:09:19]} {[%emt 00:00:50]} 35. Re1 {[%clk 00:01:46]}
{[%emt 00:00:28]} Rae7 {[%clk 00:04:59]} {[%emt 00:04:52]} 36. Rd6 {[%clk
00:01:31]} {[%emt 00:00:42]} f5 {[%clk 00:04:58]} {[%emt 00:00:34]} 37. Rd8
{[%clk 00:00:45]} {[%emt 00:01:15]} f3 {[%clk 00:04:44]} {[%emt 00:00:45]} 38.
Rxe8+ {[%clk 00:00:56]} {[%emt 00:00:19]} Rxe8 {[%clk 00:05:09]} {[%emt
00:00:04]} 39. Qc6 {[%clk 00:00:39]} {[%emt 00:00:47]} e4 {[%clk 00:04:56]}
{[%emt 00:00:44]} 40. g3 {[%clk 00:00:47]} {[%emt 00:00:22]} Be6 {[%clk
00:01:23]} {[%emt 00:04:03]} 41. Qd6 {[%clk 00:00:47]} {[%emt 00:00:30]} Bc4
{[%clk 00:01:12]} {[%emt 00:00:41]} 42. Qd4+ {[%clk 00:11:07]} {[%emt
00:20:10]} Kg8 {[%clk 00:30:27]} {[%emt 00:01:16]} 43. Kf2 {[%clk 00:07:19]}
{[%emt 00:04:17]} Bb5 {[%clk 00:23:13]} {[%emt 00:07:44]} 44. Qd2 {[%clk
00:07:26]} {[%emt 00:00:17]} Be2 {[%clk 00:19:18]} {[%emt 00:04:31]} 45. Qg5+
{[%clk 00:06:42]} {[%emt 00:01:14]} Kh8 {[%clk 00:19:26]} {[%emt 00:00:22]} 46.
Qe3 {[%clk 00:05:36]} {[%emt 00:01:35]} Qc4 {[%clk 00:15:07]} {[%emt 00:04:50]}
47. Rxe2 {[%clk 00:04:09]} {[%emt 00:01:57]} fxe2 {[%clk 00:12:17]} {[%emt
00:03:19]} 48. Qd4+ {[%clk 00:04:35]} {[%emt 00:00:03]} Qxd4+ {[%clk 00:12:39]}
{[%emt 00:00:10]} 49. cxd4 {[%clk 00:05:01]} {[%emt 00:00:04]} Ra8 {[%clk
00:11:27]} {[%emt 00:01:42]} 50. Kxe2 {[%clk 00:04:38]} {[%emt 00:00:53]} Kg7
{[%clk 00:11:43]} {[%emt 00:00:14]} 51. d5 {[%clk 00:03:19]} {[%emt 00:01:49]}
Kf6 {[%clk 00:10:50]} {[%emt 00:01:23]} 52. Ke3 {[%clk 00:02:26]} {[%emt
00:01:23]} Ke5 {[%clk 00:08:05]} {[%emt 00:03:15]} 53. Nd7+ {[%clk 00:02:49]}
{[%emt 00:00:07]} Kd6 {[%clk 00:08:11]} {[%emt 00:00:23]} 54. Nb6 {[%clk
00:03:17]} {[%emt 00:00:03]} Re8 {[%clk 00:08:18]} {[%emt 00:00:22]} 55. g4
{[%clk 00:01:36]} {[%emt 00:02:11]} fxg4 {[%clk 00:07:45]} {[%emt 00:01:04]} 56.
Kd4 {[%clk 00:01:07]} {[%emt 00:00:59]} h5 {[%clk 00:05:16]} {[%emt 00:02:58]}
57. Nc4+ {[%clk 00:01:03]} {[%emt 00:00:34]} Kc7 {[%clk 00:05:06]} {[%emt
00:00:41]} 58. Ne3 {[%clk 00:01:02]} {[%emt 00:00:31]} Rb8 {[%clk 00:04:21]}
{[%emt 00:01:14]} 59. Nc2 {[%clk 00:00:45]} {[%emt 00:00:48]} Kd6 {[%clk
00:04:17]} {[%emt 00:00:34]} 60. Kxe4 {[%clk 00:00:38]} {[%emt 00:00:37]} h4
{[%clk 00:04:17]} {[%emt 00:00:30]} 61. Kf4 {[%clk 00:00:38]} {[%emt 00:00:30]}
g3 {[%clk 00:03:53]} {[%emt 00:00:53]} 62. Kf3 {[%clk 00:00:53]} {[%emt
00:00:16]} Rf8+ {[%clk 00:04:05]} {[%emt 00:00:18]} 0-1

[Event "Masters Tournament (MTO)"]
[Site "Biel, Switzerland"]
[Date "2026.07.15"]
[Round "3.29"]
[White "Jelicic, Hugo"]
[Black "Dai, Wenzhi"]
[Result "0-1"]
[TimeControl "100+30+30sec/move"]
[WhiteTitle "-"]
[BlackTitle "-"]
[WhiteFideId "1349040"]
[BlackFideId "8608369"]
[WhiteElo "1907"]
[BlackElo "2126"]

1. d4 {[%clk 01:40:57]} {[%emt 00:00:02]} Nf6 {[%clk 01:40:52]} {[%emt
00:00:07]} 2. c4 {[%clk 01:41:02]} {[%emt 00:00:27]} e6 {[%clk 01:41:06]}
{[%emt 00:00:16]} 3. Nf3 {[%clk 01:41:27]} {[%emt 00:00:04]} b6 {[%clk
01:41:28]} {[%emt 00:00:08]} 4. g3 {[%clk 01:41:54]} {[%emt 00:00:04]} Ba6
{[%clk 01:41:49]} {[%emt 00:00:08]} 5. b3 {[%clk 01:42:16]} {[%emt 00:00:09]}
Bb7 {[%clk 01:42:13]} {[%emt 00:00:05]} 6. Bg2 {[%clk 01:42:23]} {[%emt
00:00:24]} Bb4+ {[%clk 01:42:32]} {[%emt 00:00:11]} 7. Bd2 {[%clk 01:42:08]}
{[%emt 00:00:45]} a5 {[%clk 01:42:40]} {[%emt 00:00:20]} 8. O-O {[%clk
01:38:53]} {[%emt 00:03:46]} O-O {[%clk 01:43:00]} {[%emt 00:00:10]} 9. a3
{[%clk 01:36:13]} {[%emt 00:03:11]} Be7 {[%clk 01:33:39]} {[%emt 00:09:50]} 10.
Nc3 {[%clk 01:32:39]} {[%emt 00:04:05]} d5 {[%clk 01:33:29]} {[%emt 00:00:40]}
11. Bf4 {[%clk 01:30:46]} {[%emt 00:02:22]} Nh5 {[%emt 00:19:41]} 12. Bc1
{[%clk 01:28:57]} Nf6 {[%clk 01:12:32]} {[%emt 00:04:36]} 13. Bf4 {[%clk
01:26:56]} {[%emt 00:02:31]} Nbd7 {[%clk 01:01:38]} {[%emt 00:11:24]} 14. cxd5
{[%clk 01:22:25]} {[%emt 00:05:01]} Nxd5 {[%clk 00:57:13]} {[%emt 00:04:55]} 15.
Nxd5 {[%clk 01:21:39]} {[%emt 00:01:15]} exd5 {[%clk 00:55:42]} {[%emt
00:02:01]} 16. Qd2 {[%clk 01:17:28]} {[%emt 00:04:42]} c5 {[%clk 00:54:17]}
{[%emt 00:01:54]} 17. Ne5 {[%clk 01:14:57]} {[%emt 00:03:01]} a4 {[%clk
00:46:06]} {[%emt 00:08:42]} 18. b4 {[%clk 00:54:20]} {[%emt 00:21:07]} Nxe5
{[%clk 00:42:50]} {[%emt 00:03:45]} 19. dxe5 {[%clk 00:54:27]} {[%emt
00:00:24]} Qd7 {[%clk 00:37:47]} {[%emt 00:05:33]} 20. Rfd1 {[%clk 00:38:00]}
{[%emt 00:16:56]} Rfd8 {[%clk 00:37:40]} {[%emt 00:00:36]} 21. bxc5 {[%clk
00:35:33]} {[%emt 00:02:59]} bxc5 {[%clk 00:37:39]} {[%emt 00:00:31]} 22. Qb2
{[%clk 00:35:11]} {[%emt 00:00:52]} Bc6 {[%clk 00:35:07]} {[%emt 00:03:02]} 23.
Bxd5 {[%clk 00:25:15]} {[%emt 00:10:26]} Bxd5 {[%clk 00:34:59]} {[%emt
00:00:38]} 24. e4 {[%clk 00:25:42]} {[%emt 00:00:02]} Qb7 {[%clk 00:34:52]}
{[%emt 00:00:37]} 0-1